fUSD/lending_fUSD_20240919
["ID","MTS","AMOUNT","RATE_DAILY","PERIOD"]
[338600341,1726759838252,-363.60613795,0.000129,2]
[338600343,1726759838265,-526.93118767,0.000129,2]
[338600344,1726759838276,-257.82237684,0.000129,2]
[338600345,1726759838292,-301.11415239,0.000129,2]
[338600346,1726759838305,-802.77914515,0.000129,2]
[338600347,1726759838315,-6102.05057664,0.00013,2]
[338600348,1726759838330,-4538.33381839,0.00013,2]
[338600349,1726759838342,-16602.28958187,0.00013,2]
[338600350,1726759838463,-486.81726003,0.00013,2]
[338600351,1726759838475,-767.54721912,0.00013,2]
[338600352,1726759838487,-28119.1141531,0.00013,2]
[338600353,1726759838498,-500.56436029,0.00013,2]
[338600354,1726759838512,-716.53939924,0.00013,2]
[338600355,1726759838524,-55498.09177121,0.00013,2]
[338600356,1726759838535,-10441.17998013,0.00013,2]
[338600357,1726759838546,-200604.30330072,0.00013,2]
[338600358,1726759838558,-30657.11050398,0.00013,2]
[338600359,1726759838567,-103245.88949602,0.00013,2]
[338600360,1726759838578,-2074.50000001,0.00013,2]
[338600361,1726759838589,-1173.65274454,0.00013,2]
[338600362,1726759838601,-280.407,0.00013,2]
[338600363,1726759838612,-426.35735425,0.00013,2]
[338600364,1726759838623,-73683.67107611,0.00013,2]
[338600365,1726759838634,-7544.50302701,0.00013,2]
[338600366,1726759838647,-344461.47703624,0.00013,2]
[338600367,1726759838659,-14597.29027307,0.00013,2]
[338600368,1726759838670,-467.78067696,0.00013,2]
[338600369,1726759838681,-1002.07944049,0.00013,2]
[338600370,1726759838693,-21049.79701956,0.00013,2]
[338600371,1726759838707,-303.35364713,0.00013,2]
[338600372,1726759838720,-1041.07666733,0.00013,2]
[338600373,1726759838736,-565.81912812,0.00013,2]
[338600437,1726759840213,-526.45513624,0.00013,2]
[338600438,1726759840224,-10352.58655339,0.00013,2]
[338600439,1726759840237,-26562.30521915,0.00013,2]
[338600440,1726759840275,-891.15980052,0.00013,2]
[338600441,1726759840320,-306.5521575,0.00013,2]
[338600442,1726759840331,-1730.32425122,0.00013,2]
[338600443,1726759840470,-315.3343428,0.00013,2]
[338600444,1726759840481,-1289.90576999,0.00013,2]
[338600445,1726759840495,-23017.0,0.00013,2]
[338600446,1726759840507,-9122.74235,0.00013,2]
[338600447,1726759840519,-13256.87732019,0.00013,2]
[338600448,1726759840531,-7759.32294957,0.00013,2]
[338600449,1726759840544,-1226.66149548,0.00013,2]
[338600450,1726759840556,-1819.99999776,0.00013,2]
[338600451,1726759840568,-1210.81,0.00013,2]
[338600452,1726759840579,-6383331.85975248,0.00013,2]
[338600453,1726759840591,-313935.96497659,0.00013,2]
[338600454,1726759840603,-49450.0,0.00013,2]
[338600455,1726759840615,-228795.93175319,0.00013,2]
[338600463,1726759843258,-1045.14,0.00013,2]
[338600464,1726759843271,-470.92076434,0.00013,2]
[338600465,1726759843402,-733.45704882,0.00013,2]
[338600466,1726759843415,-641.85958326,0.00013,2]
[338600467,1726759843426,-2057.28,0.00013,2]
[338600468,1726759843438,-14829.77004963,0.00013,2]
[338600469,1726759843451,-659.44059965,0.00013,2]
[338600470,1726759843463,-588.039975,0.00013,2]
[338600471,1726759843475,-473.3996957,0.00013,2]
[338600472,1726759843487,-3179.282196,0.00013,2]
[338600473,1726759843498,-647.46735558,0.00013,2]
[338600474,1726759843510,-536.28001313,0.00013,2]
[338600475,1726759843522,-30000.0,0.00013,2]
[338600476,1726759843535,-827.37773051,0.00013,2]
[338600477,1726759843547,-357435.54511704,0.00013,2]
[338600478,1726759843558,-31386.70792399,0.00013,2]
[338600479,1726759843570,-12049.2324329,0.00013,2]
[338600480,1726759843581,-12178.28593014,0.00013,2]
[338600481,1726759843592,-11072.78688,0.00013,2]
[338600482,1726759843602,-5203.47580105,0.00013,2]
[338600483,1726759843617,-552682.32476323,0.00013,2]
[338600484,1726759843628,-392.857998,0.00013,2]
[338600485,1726759843642,-302.23,0.00013,2]
[338600486,1726759843653,-300.1,0.00013,2]
[338600487,1726759843665,-307.38558639,0.00013,2]
[338600488,1726759843677,-274.264,0.00013,2]
[338600489,1726759843689,-309.865,0.00013,2]
[338600495,1726759846183,-2192.36880359,0.00013,2]
[338600496,1726759846195,-1289.4108312,0.00013,2]
[338600497,1726759846207,-4337.18899245,0.00013,2]
[338600498,1726759846219,-1568.92074396,0.00013,2]
[338600499,1726759846230,-305.0,0.00013,2]
[338600500,1726759846242,-1710.75555846,0.00013,2]
[338600501,1726759846253,-1408.82174182,0.00013,2]
[338600502,1726759846264,-690.60504577,0.00013,2]
[338600503,1726759846275,-926.66902096,0.00013,2]
[338600504,1726759846413,-1033.59720923,0.00013,2]
[338600505,1726759846424,-432.87434618,0.00013,2]
[338600506,1726759846436,-257354.74939508,0.00013,2]
[338600507,1726759846448,-606.13570382,0.00013,2]
[338600508,1726759846459,-8563.99436159,0.00013,2]
[338600509,1726759846470,-270.462826,0.00013,2]
[338600510,1726759846481,-1748.9835148,0.00013,2]
[338600511,1726759846492,-4506.06258621,0.00013,2]
[338600512,1726759846504,-1221.72,0.00013,2]
[338600513,1726759846515,-456.80005735,0.00013,2]
[338600514,1726759846526,-5000.0,0.00013,2]
[338600515,1726759846538,-3810.0852332,0.00013,2]
[338600516,1726759846550,-2635.15652636,0.00013,2]
[338600517,1726759846561,-837.1615839,0.00013,2]
[338600518,1726759846573,-293.72448332,0.00013,2]
[338600519,1726759846585,-1138.28203649,0.00013,2]
[338600520,1726759846596,-1073.61091901,0.00013,2]
[338600521,1726759846607,-6646.89595268,0.00013,2]
[338600522,1726759846619,-2417.41677453,0.00013,2]
[338600523,1726759846631,-1465.89092279,0.00013,2]
[338600524,1726759846642,-1645.40990923,0.00013,2]
[338600525,1726759846655,-789.18618,0.00013,2]
[338600526,1726759846667,-447.11726798,0.00013,2]
[338600529,1726759871157,500.0,0.00022999,120]
[338600530,1726759871464,500.0,0.00022999,120]
[338600531,1726759871739,500.0,0.00022999,120]
[338600532,1726759872032,500.0,0.00022999,120]
[338600533,1726759872328,500.0,0.00022999,120]
[338600534,1726759872624,500.0,0.00022999,120]
[338600536,1726759872898,500.0,0.00022999,120]
[338600537,1726759873158,597.77588322,0.00022999,120]
[338600540,1726759888899,268.33889076,0.00022999,120]
[338600542,1726759896348,5180.0,0.00012579,2]
[338600543,1726759896372,435.52,0.00012579,2]
[338600544,1726759904096,500.0,0.00012579,3]
[338600545,1726759926214,650.02,0.00010661,2]
[338600546,1726759964536,196.17,0.00012579,2]
[338600548,1726760002485,164.06,0.00012579,2]
[338600549,1726760029083,163.21,0.00012579,2]
[338600554,1726760097117,500.0,0.00022999,120]
[338600555,1726760103099,500.0,0.00022999,120]
[338600556,1726760112299,500.0,0.00022999,120]
[338600557,1726760118867,500.0,0.00022999,120]
[338600558,1726760120923,500.0,0.00022999,120]
[338600560,1726760126901,500.0,0.00022999,120]
[338600561,1726760129210,469.25916445,0.00022999,120]
[338600562,1726760131213,500.0,0.00022999,120]
[338600563,1726760133183,500.0,0.00022999,120]
[338600564,1726760137220,500.2078752,0.00022999,120]
[338600565,1726760139253,500.20261471,0.00022999,120]
[338600566,1726760141816,500.14846078,0.00022999,120]
[338600567,1726760146574,354.42751384,0.00022999,120]
[338600568,1726760152593,181.83,0.00010959,2]
[338600569,1726760167169,-150.0,0.00012899,2]
[338600572,1726760200920,14769.5109,0.00012799,2]
[338600573,1726760206262,-5817.3349,0.000129,2]
[338600574,1726760206283,-11032.6651,0.000129,2]
[338600575,1726760215891,250.0,0.00012579,2]
[338600577,1726760226018,500.0,0.00022999,120]
[338600582,1726760246513,224.43,0.00012579,2]
[338600583,1726760253096,152.31,0.00013918,30]
[338600587,1726760306362,250.0,0.00012579,2]
[338600592,1726760419448,-2026.5602,0.000128,2]
[338600593,1726760419471,-173.2192,0.000129,2]
[338600594,1726760419495,-8818.5755,0.000129,2]
[338600595,1726760419518,-7386.6451,0.000129,2]
[338600596,1726760438305,500.06791562,0.00023,120]
[338600600,1726760503844,661.81,0.00011281,2]
[338600614,1726760656576,167.55,0.00012579,2]
[338600625,1726760703360,285.15528453,0.00011688,2]
[338600636,1726760785482,12236.49,0.00012466,2]
[338600638,1726760813608,152.31,0.00013918,30]
[338600653,1726760844163,1050.0,0.00011,2]
[338600663,1726760906616,250.0,0.00012519,2]
[338600679,1726760981562,250.0,0.00012353,2]
[338600680,1726760990109,187.74,0.00010959,2]
[338600705,1726761032300,-200.0,0.00012827,2]
[338600706,1726761032310,-160.2,0.00012848,2]
[338600707,1726761032322,-150.0,0.00012851,2]
[338600708,1726761032334,-150.0,0.00012877,2]
[338600709,1726761032344,-300.0,0.00012887,2]
[338600710,1726761032353,-3886.28585161,0.00012889,2]
[338600711,1726761032363,-150.0,0.00012898,2]
[338600712,1726761032372,-247.06014866,0.00012899,2]
[338600713,1726761032382,-993.26616708,0.000129,2]
[338600714,1726761032394,-1837.68576623,0.000129,2]
[338600715,1726761032405,-8237.77937276,0.000129,2]
[338600716,1726761032416,-3255.09037,0.000129,2]
[338600717,1726761032428,-1569.51031805,0.000129,2]
[338600718,1726761032440,-8023.28700588,0.000129,2]
[338600719,1726761032449,-299.99,0.000129,2]
[338600720,1726761032459,-613.1082,0.000129,2]
[338600721,1726761032469,-167.66392195,0.000129,2]
[338600722,1726761032479,-849.25658023,0.000129,2]
[338600723,1726761032491,-88.8554024,0.000129,2]
[338600724,1726761032501,-241.61366286,0.000129,2]
[338600725,1726761032510,-106.17267019,0.000129,2]
[338600726,1726761032522,-214.40515587,0.000129,2]
[338600727,1726761032531,-196.17,0.00012966,2]
[338600728,1726761032541,-124.04675021,0.00012966,2]
[338600729,1726761032552,-375.94324979,0.00012966,2]
[338600730,1726761032562,-151.26,0.00012989,2]
[338600731,1726761032573,-322.16634267,0.00012998,2]
[338600732,1726761032591,-177.83365733,0.00012998,2]
[338600733,1726761032600,-500.0,0.00012998,2]
[338600734,1726761032609,-583.91009086,0.00012998,2]
[338600735,1726761032619,-164.01775805,0.00012999,2]
[338600736,1726761032631,-1131.15926882,0.00012999,2]
[338600737,1726761032643,-2084.775,0.00012999,2]
[338600738,1726761032654,-48771.99999999,0.00012999,2]
[338600739,1726761032666,-19366.40000187,0.00012999,2]
[338600740,1726761032677,-6436.83739313,0.00012999,2]
[338600741,1726761032689,-3973.28613595,0.00012999,2]
[338600742,1726761032920,-688.33468283,0.00012999,2]
[338600802,1726761038360,-500.0,0.00012973,2]
[338600803,1726761038370,-23423.33231431,0.00012999,2]
[338600804,1726761038381,-83538.26406569,0.00012999,2]
[338600805,1726761038416,-5758.39553078,0.00012999,2]
[338600806,1726761038427,-3736.55848886,0.00012999,2]
[338600807,1726761038438,-3027.52421988,0.00012999,2]
[338600808,1726761038471,-8976.90286343,0.00012999,2]
[338600809,1726761038484,-601.64832089,0.00012999,2]
[338600810,1726761038525,-31685.49999998,0.00012999,2]
[338600811,1726761038536,-3273.7005975,0.00012999,2]
[338600812,1726761038547,-305.85,0.00012999,2]
[338600813,1726761038633,-63451.50339002,0.00012999,2]
[338600814,1726761038645,-19489.86899283,0.00012999,2]
[338600815,1726761038657,-24182.9404003,0.00012999,2]
[338600816,1726761038688,-45882.8407568,0.00012999,2]
[338600987,1726761040445,-202.84831938,0.000129,2]
[338600990,1726761040455,-57.47370811,0.00012999,2]
[338600992,1726761040466,-1782.038759,0.00012999,2]
[338600994,1726761040478,-922.21903469,0.00012999,2]
[338601007,1726761040586,-45387.52440629,0.00012999,2]
[338601009,1726761040595,-669966.55735917,0.00013,2]
[338601011,1726761040604,-3367167.81409183,0.00013,2]
[338601013,1726761040615,-357398.33085421,0.00013,2]
[338601015,1726761040626,-90702.56523779,0.00013,2]
[338601317,1726761043415,-26180.27898567,0.000129,2]
[338601318,1726761043469,-500.23429319,0.000129,2]
[338601319,1726761043524,-3958.23651161,0.000129,2]
[338601579,1726761046295,-7192.46150953,0.000129,2]
[338601581,1726761046304,-73060.08298634,0.00013,2]
[338601583,1726761046315,-1206.09817827,0.00013,2]
[338601588,1726761046347,-390.67842279,0.00013,2]
[338601590,1726761046360,-7667.70189542,0.00013,2]
[338601593,1726761046375,-4545.31242003,0.00013,2]
[338601594,1726761046456,-264.56933083,0.00013,2]
[338601595,1726761046511,-506.34561516,0.00013,2]
[338601596,1726761046522,-306523.52493484,0.00013,2]
[338601597,1726761046534,-256.3872248,0.00013,2]
[338601598,1726761046565,-195714.69788956,0.00013,2]
[338601599,1726761046578,-39726.31858931,0.00013,2]
[338601600,1726761046589,-316.53781416,0.00013,2]
[338601601,1726761046601,-539.53645481,0.00013,2]
[338601602,1726761046612,-5999.60795184,0.00013,2]
[338601603,1726761046623,-2600.0,0.00013,2]
[338601604,1726761046638,-12674.00000001,0.00013,2]
[338601605,1726761046649,-2440.0285046,0.00013,2]
[338602315,1726761079760,150.0,0.00023,120]
[338602321,1726761133308,705.14,0.00010661,2]
[338602323,1726761139483,545.37867468,0.000151,120]
[338602326,1726761155654,371.91622046,0.00012742,2]
[338602330,1726761194266,250.0,0.00012735,2]
[338602335,1726761290057,246.64,0.00012407,2]
[338602338,1726761371103,152.31,0.00013918,30]
[338602339,1726761377382,1000.0,0.00012315,2]
[338602342,1726761400305,3506.5,0.00012743,2]
[338602345,1726761433639,1000.0,0.00022,60]
[338602347,1726761482733,250.0,0.00012357,2]
[338602349,1726761518956,250.0,0.00012311,2]
[338602350,1726761528946,169.07,0.00010959,2]
[338602351,1726761608695,313.43,0.00012496,2]
[338602352,1726761631436,150.0,0.00021338,120]
[338602353,1726761669804,371.91622047,0.00012611,2]
[338602354,1726761690055,-153.38,0.000149,31]
[338602355,1726761690080,-1526.3110779,0.00015,30]
[338602356,1726761707836,707.16,0.00010526,2]
[338602357,1726761716528,900.0,0.00022,60]
[338602358,1726761751235,250.0,0.00012341,2]
[338602359,1726761782276,161.35,0.00012341,2]
[338602360,1726761783855,163.21,0.00012341,2]
[338602361,1726761795422,8809.47,0.00012341,2]
[338602362,1726761810794,150.0,0.00019114,120]
[338602363,1726761811198,2000.0,0.00012383,2]
[338602365,1726761870816,150.0,0.00022993,120]
[338602367,1726761920493,152.31,0.00013918,30]
[338602368,1726761958803,200.0,0.00012383,2]
[338602369,1726762048401,250.0,0.00012314,2]
[338602488,1726762092025,167.04,0.00012735,2]
[338602491,1726762111390,150.0,0.00017928,120]
[338602492,1726762115998,1949.186769,0.00012681,2]
[338602496,1726762146125,250.0,0.00012524,2]
[338602498,1726762150976,152.0,0.00022,60]
[338602502,1726762170762,150.0,0.00020119,120]
[338602518,1726762231420,-167.0,0.00012745,2]
[338602519,1726762231430,-290.46,0.0001279,2]
[338602521,1726762231439,-388.62694448,0.0001279,2]
[338602522,1726762231450,-318.53305552,0.0001279,2]
[338602524,1726762231461,-150.0,0.00012799,2]
[338602526,1726762231470,-234.40268457,0.000128,2]
[338602527,1726762231482,-1157.54461543,0.000128,2]
[338602529,1726762231495,-172.8445,0.000128,2]
[338602530,1726762231506,-6186.84070316,0.000128,2]
[338602532,1726762231518,-432.000004,0.000128,2]
[338602534,1726762231529,-10150.51607948,0.000128,2]
[338602536,1726762231540,-410.67,0.00012839,2]
[338602538,1726762231550,-150.23271,0.0001287,2]
[338602539,1726762231560,-261.846,0.0001287,2]
[338602541,1726762231573,-892.8808,0.00012899,2]
[338602543,1726762231583,-1620.2565,0.00012899,2]
[338602544,1726762231593,-4513.4936,0.00012899,2]
[338602546,1726762231603,-500.0,0.00012899,2]
[338602548,1726762231613,-4986.3405,0.00012899,2]
[338602549,1726762231622,-1846.96381052,0.000129,2]
[338602551,1726762231633,-335.08950845,0.000129,2]
[338602553,1726762231645,-276.52,0.000129,2]
[338602554,1726762231657,-2034.3771887,0.000129,2]
[338602555,1726762231669,-666.96830575,0.000129,2]
[338602556,1726762231680,-475.33640045,0.000129,2]
[338602558,1726762231691,-1354.87280656,0.000129,2]
[338602560,1726762231702,-250.0,0.000129,2]
[338602562,1726762231715,-752.76793986,0.000129,2]
[338602564,1726762231726,-945.53336606,0.000129,2]
[338602566,1726762231738,-2098.12067365,0.000129,2]
[338602568,1726762231747,-499.99,0.000129,2]
[338602569,1726762231757,-189.24727392,0.000129,2]
[338602570,1726762231768,-110.74272608,0.000129,2]
[338602571,1726762231778,-159.05875729,0.000129,2]
[338602572,1726762231787,-1730.19851663,0.000129,2]
[338602573,1726762231798,-6708.88506348,0.000129,2]
[338602574,1726762231810,-3106.15268631,0.000129,2]
[338602575,1726762231821,-290.16336359,0.000129,2]
[338602576,1726762231832,-13684.59386999,0.000129,2]
[338602577,1726762231842,-1000.0,0.000129,2]
[338602578,1726762231852,-1885.78396985,0.000129,2]
[338602579,1726762231863,-389.84087267,0.000129,2]
[338602580,1726762231875,-5649.28327191,0.000129,2]
[338602581,1726762231886,-3960.54688557,0.000129,2]
[338602582,1726762231895,-642.49306942,0.000129,2]
[338602583,1726762231906,-43740.52263058,0.000129,2]
[338602584,1726762231915,-175.32248016,0.000129,2]
[338602585,1726762231925,-966.25248526,0.000129,2]
[338602586,1726762231935,-151.0330361,0.000129,2]
[338602587,1726762231944,-422.44759378,0.00012973,2]
[338602588,1726762231956,-500.0,0.00012973,2]
[338602589,1726762231966,-150.14,0.0001299,2]
[338602590,1726762231976,-150.14,0.0001299,2]
[338602591,1726762231986,-150.14,0.0001299,2]
[338602592,1726762231996,-150.14,0.0001299,2]
[338602593,1726762232006,-169.0686501,0.00012999,2]
[338602594,1726762232015,-500.0,0.00012999,2]
[338602595,1726762232025,-500.0,0.00012999,2]
[338602596,1726762232034,-488.20766106,0.00012999,2]
[338602597,1726762232043,-200.0,0.00012999,2]
[338602598,1726762232053,-14228.34880221,0.00013,2]
[338602599,1726762232065,-13177.92299829,0.00013,2]
[338602600,1726762232078,-460.19652237,0.00013,2]
[338602601,1726762232090,-299.6900001,0.00013,2]
[338602602,1726762232101,-382.31751455,0.00013,2]
[338602603,1726762232113,-401.44091038,0.00013,2]
[338602604,1726762232129,-312.4205569,0.00013,2]
[338602605,1726762232140,-1601.38575,0.00013,2]
[338602606,1726762232151,-806.59811442,0.00013,2]
[338602607,1726762232162,-889.15149544,0.00013,2]
[338602612,1726762237452,-5241.13075619,0.00013,2]
[338602613,1726762237506,-5600.74336425,0.00013,2]
[338602614,1726762237519,-1608.02385753,0.00013,2]
[338602615,1726762237561,-50702.62269589,0.00013,2]
[338602616,1726762237615,-63491.59336379,0.00013,2]
[338602617,1726762237670,-524676.13608142,0.00013,2]
[338602618,1726762237680,-4607484.49398261,0.00013,2]
[338602619,1726762237726,-30237.93804003,0.00013,2]
[338602645,1726762239621,-1312.15610202,0.00013,2]
[338602646,1726762239632,-503.5624162,0.00013,2]
[338602647,1726762239643,-857.46802181,0.00013,2]
[338602648,1726762239655,-597.01017384,0.00013,2]
[338602649,1726762239666,-318.80676,0.00013,2]
[338602650,1726762239677,-986109.19106357,0.00013,2]
[338602651,1726762239688,-5941.76094401,0.00013,2]
[338602660,1726762239860,-7565.55819903,0.00013,2]
[338602663,1726762239871,-373.56117198,0.00013,2]
[338602801,1726762242479,-38532.7306735,0.00013,2]
[338602802,1726762242491,-8679.59506081,0.00013,2]
[338602803,1726762242504,-267.9483656,0.00013,2]
[338602804,1726762242516,-489.06,0.00013,2]
[338602805,1726762242526,-327.75000005,0.00013,2]
[338602806,1726762242538,-1000.0,0.00013,2]
[338602807,1726762242549,-610.20934057,0.00013,2]
[338602809,1726762242561,-445.70504057,0.00013,2]
[338602810,1726762242573,-527.58605655,0.00013,2]
[338602811,1726762242585,-6160.50534124,0.00013,2]
[338602812,1726762242596,-1605.35180376,0.00013,2]
[338602813,1726762242607,-1262.185602,0.00013,2]
[338602814,1726762242618,-4078.9714258,0.00013,2]
[338602815,1726762242646,-2382.666039,0.00013,2]
[338602816,1726762242702,-1011.21766666,0.00013,2]
[338602823,1726762245386,-8823.4074474,0.00013,2]
[338602824,1726762245397,-12086.00324161,0.00013,2]
[338602825,1726762245502,-1294.63954852,0.00013,2]
[338602826,1726762245610,-431.22961645,0.00013,2]
[338602827,1726762245667,-6751.79144901,0.00013,2]
[338602828,1726762245678,-633.27,0.00013,2]
[338602829,1726762245690,-2660.46376001,0.00013,2]
[338602830,1726762245702,-1216.07779227,0.00013,2]
[338602831,1726762245714,-3648.9525255,0.00013,2]
[338602839,1726762269008,712.71,0.00011134,2]
[338602840,1726762290783,150.0,0.00021627,120]
[338602841,1726762332371,332.89,0.00012579,2]
[338602842,1726762401236,394.7977753,0.00012655,2]
[338602843,1726762410769,150.0,0.00019493,120]
[338602844,1726762437156,150.0,0.00022986,120]
[338602845,1726762529900,200.0,0.00012684,2]
[338602846,1726762559114,252.88,0.00012632,2]
[338602847,1726762590852,150.0,0.00015019,120]
[338602849,1726762617972,250.0,0.000127,2]
[338602851,1726762646572,1050.0,0.00011,2]
[338602852,1726762672119,160.77,0.00010959,2]
[338602853,1726762711371,150.0,0.00014666,120]
[338602854,1726762759354,478.18,0.000126,2]
[338602855,1726762771389,150.0,0.00022555,120]
[338602856,1726762777592,152.31,0.00013918,30]
[338602857,1726762780179,164.77,0.000126,2]
[338602858,1726762813480,500.0,0.00022999,120]
[338602859,1726762813761,500.0,0.00022999,120]
[338602860,1726762814036,500.0,0.00022999,120]
[338602861,1726762814299,500.0,0.00022999,120]
[338602862,1726762814613,500.0,0.00022999,120]
[338602863,1726762814852,500.0,0.00022999,120]
[338602864,1726762815120,345.18,0.00022999,120]
[338602865,1726762821891,250.0,0.000126,2]
[338602866,1726762881849,5582.88,0.00012589,2]
[338602867,1726762883422,173.76,0.00012589,2]
[338602868,1726762883642,173.76,0.00012601,2]
[338602869,1726762883865,173.76,0.00012614,2]
[338602870,1726762884238,173.76,0.00012627,2]
[338602871,1726762884341,173.76,0.00012639,2]
[338602872,1726762884564,173.76,0.00012652,2]
[338602873,1726762890910,150.0,0.00016975,120]
[338602874,1726762926679,157.95,0.00012715,2]
[338602875,1726762929943,714.11,0.00010797,2]
[338602876,1726762935212,500.0,0.00022999,120]
[338602877,1726762935522,500.0,0.00022999,120]
[338602878,1726762935788,500.0,0.00022999,120]
[338602879,1726762936062,488.49,0.00022999,120]
[338602880,1726762942896,250.0,0.00012638,2]
[338602881,1726762950767,150.0,0.00015828,120]
[338602882,1726763010827,150.0,0.0001821,120]
[338602883,1726763015713,500.0,0.00012536,2]
[338602884,1726763016220,500.0,0.00012537,2]
[338602885,1726763016765,500.0,0.00012537,2]
[338602886,1726763017385,150.0,0.00022986,120]
[338602887,1726763020547,500.0,0.00022999,120]
[338602888,1726763048903,524.09434575,0.00022999,120]
[338602889,1726763054511,160.0,0.00012733,2]
[338602890,1726763087309,500.0,0.00022999,120]
[338602891,1726763089351,500.0,0.00022999,120]
[338602892,1726763157157,348.81,0.00010959,2]
[338602893,1726763177935,248.226519,0.00012692,2]
[338602894,1726763177997,792.79,0.00010959,2]
[338602895,1726763190449,250.0,0.0001254,2]
[338602896,1726763190833,150.0,0.00019311,120]
[338602897,1726763239546,1418.7251581,0.000127,2]
[338603050,1726763260022,500.0,0.00022999,120]
[338603051,1726763322888,500.0,0.00022999,120]
[338603052,1726763332261,500.0,0.00022999,120]
[338603053,1726763332564,500.0,0.00022999,120]
[338603054,1726763332832,500.0,0.00022999,120]
[338603055,1726763333120,500.0,0.00022999,120]
[338603056,1726763333386,169.77,0.00022999,120]
[338603057,1726763369385,300.0,0.00022999,120]
[338603067,1726763431656,-804.8994337,0.00012756,2]
[338603068,1726763431669,-35.1005663,0.00012756,2]
[338603069,1726763431681,-300.0,0.00012799,2]
[338603070,1726763431691,-1168.1644,0.000128,2]
[338603071,1726763431700,-2704.62320438,0.000128,2]
[338603072,1726763431712,-4118.27119374,0.000128,2]
[338603073,1726763431723,-1174.76,0.000128,2]
[338603074,1726763431735,-1300.0,0.000128,2]
[338603075,1726763431746,-1928.20760668,0.000128,2]
[338603076,1726763431761,-1371.79239332,0.000128,2]
[338603077,1726763431772,-3377.03584135,0.000128,2]
[338603078,1726763431785,-2462.06665474,0.000128,2]
[338603079,1726763431795,-50000.0,0.00012868,2]
[338603080,1726763431805,-150.0,0.00012868,2]
[338603081,1726763431814,-150.0,0.00012869,2]
[338603082,1726763431824,-10569.30428538,0.0001287,2]
[338603083,1726763431834,-176.0,0.0001287,2]
[338603084,1726763431848,-328.53,0.00012889,2]
[338603085,1726763431858,-222.7304,0.00012899,2]
[338603086,1726763431867,-3515.1513,0.000129,2]
[338603087,1726763431877,-46471.4175,0.000129,2]
[338603088,1726763431887,-6779.8066,0.000129,2]
[338603089,1726763431897,-885.9,0.000129,2]
[338603090,1726763431906,-606.64,0.000129,2]
[338603091,1726763431915,-4758.962032,0.000129,2]
[338603092,1726763431925,-500.0,0.000129,2]
[338603093,1726763431935,-297.9512,0.000129,2]
[338603094,1726763431945,-5241.4123,0.000129,2]
[338603095,1726763431955,-25146.9783,0.000129,2]
[338603096,1726763431965,-1000.0,0.000129,2]
[338603097,1726763431974,-499.99,0.000129,2]
[338603098,1726763431983,-2526.42,0.000129,2]
[338603099,1726763431993,-326.22578013,0.000129,2]
[338603100,1726763432002,-644.1683235,0.000129,2]
[338603101,1726763432015,-3166.86026608,0.000129,2]
[338603102,1726763432025,-428.99439496,0.000129,2]
[338603103,1726763432034,-304.73768498,0.000129,2]
[338603104,1726763432044,-153.36419613,0.000129,2]
[338603105,1726763432053,-500.0,0.00012973,2]
[338603106,1726763432063,-500.0,0.00012973,2]
[338603107,1726763432073,-151.78,0.0001299,2]
[338603108,1726763432082,-151.78,0.0001299,2]